bitfinex-derivatives/quotes_BNBF0:USTF0_20250128
["timestamp","ask_amount","ask_price","bid_price","bid_amount"]
[1738094841723,0.27450745,669.94,668.53,0.29916383]
[1738094841923,0.29853865,669.93,668.53,0.29916383]
[1738094842124,0.27450745,669.92,668.53,0.29916383]
[1738094843126,1.55996683,669.91,668.53,0.29916383]
[1738094843319,0.27450745,669.9,668.53,0.29916383]
[1738094843722,1.55996683,669.91,668.53,0.29916383]
[1738094850528,0.27448562,669.9,668.53,0.29916383]
[1738094851529,0.27448562,669.9,668.53,1.4167937]
[1738094851925,1.55996683,669.91,668.53,1.4167937]
[1738094852327,0.27447832,669.9,668.53,1.4167937]
[1738094852521,1.55996683,669.91,668.53,1.4167937]
[1738094852925,0.27447136,669.9,668.53,1.4167937]
[1738094854829,0.27447136,669.9,668.76,1.11762987]
[1738094857530,0.27447136,669.9,668.8,1.11762987]
[1738094858232,1.55996683,669.91,668.8,1.11762987]
[1738094859729,0.27447599,669.9,668.8,1.11762987]
[1738094860924,0.27447599,669.9,668.53,0.29916383]
[1738094860925,0.27447599,669.9,668.91,1.11762987]
[1738094862829,1.55996683,669.91,668.91,1.11762987]
[1738094863733,1.55996683,669.91,668.98,1.11762987]
[1738094867237,0.29853865,669.93,668.98,1.11762987]
[1738094867634,0.29853865,669.93,669.01,1.11762987]
[1738094870942,0.29853865,669.93,669.06,1.11762987]
[1738094873644,0.29853865,669.93,669.08,1.11762987]
[1738094875949,0.29853865,669.93,669.11,1.11762987]
[1738094878548,0.29853865,669.93,669.06,1.11762987]
[1738094881054,0.29853865,669.93,669.05,1.11762987]
[1738094884352,0.29853865,669.93,669.11,1.11762987]
[1738094887152,1.55906993,670.25,669.11,1.11762987]
[1738094887558,1.55906993,670.25,669.08,1.11762987]
[1738094889359,0.2743581,670.24,669.08,1.11762987]
[1738094889559,1.55906993,670.25,669.08,1.11762987]
[1738094891053,1.55906993,670.25,668.88,1.11762987]
[1738094891054,1.55906993,670.25,669.17,1.11762987]
[1738094893960,1.55906993,670.25,669.14,1.11762987]
[1738094897163,1.55906993,670.25,669.15,1.11762987]
[1738094897363,0.27436509,670.24,669.15,1.11762987]
[1738094898858,1.55906993,670.25,669.15,1.11762987]
[1738094899057,0.27437332,670.24,669.15,1.11762987]
[1738094900062,1.55906993,670.25,669.15,1.11762987]
[1738094900259,0.2743606,670.24,669.13,1.11762987]
[1738094901958,1.55906993,670.25,669.13,1.11762987]
[1738094902266,0.27435382,670.24,669.13,1.11762987]
[1738094902467,1.55906993,670.25,669.13,1.11762987]
[1738094902867,1.55906993,670.25,669.19,1.11762987]
[1738094906471,0.27434711,670.24,669.19,1.11762987]
[1738094906670,0.27434711,670.24,668.7,1.34115585]
[1738094906671,0.27434711,670.24,669.25,1.11762987]
[1738094908576,1.55906993,670.25,669.25,1.11762987]
[1738094909475,1.55906993,670.25,669.31,1.11762987]
[1738094912277,1.55906993,670.25,669.29,1.11762987]
[1738094913479,1.11905025,670.44,669.29,1.11762987]
[1738094913776,1.55871496,670.33,669.29,1.11762987]
[1738094913974,0.298316,670.43,669.29,1.11762987]
[1738094914174,1.55866841,670.33,669.29,1.11762987]
[1738094914580,0.298316,670.43,669.29,1.11762987]
[1738094914772,0.27431833,670.42,669.29,1.11762987]
[1738094915176,0.2983249,670.41,669.29,1.11762987]
[1738094915479,0.27431833,670.4,669.3,1.11762987]
[1738094915670,0.2983249,670.41,669.3,1.11762987]
[1738094915876,1.83293496,670.4,669.3,1.11762987]
[1738094916076,0.2743189,670.39,669.3,1.11762987]
[1738094916675,1.85694541,670.4,669.3,1.11762987]
[1738094918685,1.85694541,670.4,669.25,1.11762987]
[1738094921779,1.85694541,670.4,669.27,1.11762987]
[1738094924683,1.85694541,670.4,669.25,1.11762987]
[1738094928885,1.85694541,670.4,669.33,1.11762987]
[1738094931786,1.85694541,670.4,669.24,1.11762987]
[1738094934888,1.85694541,670.4,669.26,1.11762987]
[1738094938190,1.85694541,670.4,669.28,1.11762987]
[1738094941291,1.85694541,670.4,669.34,1.11762987]
[1738094945495,1.85694541,670.4,669.36,1.11762987]
[1738094948096,1.85694541,670.4,669.47,1.11762987]
[1738094950997,0.2983338,670.39,669.47,1.11762987]
[1738094951791,0.2983338,670.39,669.51,1.11762987]
[1738094954899,0.2983338,670.39,669.07,1.11762987]
[1738094958003,0.2983338,670.39,669.13,1.11762987]
[1738094963503,0.2983338,670.39,669.13,1.41652545]
[1738094964807,0.2983338,670.39,669.43,1.11762987]
[1738094966611,0.27429421,670.38,669.43,1.11762987]
[1738094967210,0.27429421,670.38,669.44,1.11762987]
[1738094967412,0.2983338,670.39,669.44,1.11762987]
[1738094967712,0.27429365,670.38,669.44,1.11762987]
[1738094969111,0.2983338,670.39,669.44,1.11762987]
[1738094969413,0.27428994,670.38,669.44,1.11762987]
[1738094969613,0.27428994,670.38,669.14,0.70853064]
[1738094969614,0.27428994,670.38,669.46,1.11762987]
[1738094970808,0.2983338,670.39,669.46,1.11762987]
[1738094972915,0.2983338,670.39,669.36,1.11762987]
[1738094979722,0.2983338,670.39,669.35,1.11762987]
[1738094983029,0.2983338,670.39,669.36,1.11762987]
[1738094985717,0.2983338,670.39,669.29,1.11762987]
[1738094989325,0.2983338,670.39,669.3,1.11762987]
[1738094991727,0.2983338,670.39,669.29,1.11762987]
[1738094994620,0.2983338,670.39,669.13,0.29889558]
[1738094994621,0.2983338,670.39,669.35,1.11762987]
[1738094997427,0.2983338,670.39,669.4,1.11762987]
[1738095000029,0.2983338,670.39,669.42,1.11762987]
[1738095002931,0.2983338,670.39,669.31,1.11762987]
[1738095006635,0.2983338,670.39,669.3,1.11762987]
[1738095009941,0.2983338,670.39,669.28,1.11762987]
[1738095013345,0.2983338,670.39,669.38,1.11762987]
[1738095015947,0.2983338,670.39,669.35,1.11762987]
[1738095018543,0.2983338,670.39,669.36,1.11762987]
[1738095021745,0.2983338,670.39,669.46,1.11762987]
[1738095025349,0.2983338,670.39,669.41,1.11762987]
[1738095031252,0.2983338,670.39,669.14,1.11762987]
[1738095031253,0.2983338,670.39,669.51,1.11762987]
[1738095033654,0.2983338,670.39,669.49,1.11762987]
[1738095041154,0.2983338,670.39,669.64,1.11762987]
[1738095041559,1.55808105,670.66,669.64,1.11762987]
[1738095041760,0.27418199,670.65,669.64,1.11762987]
[1738095042361,1.55808105,670.66,669.64,1.11762987]
[1738095042562,0.27418253,670.65,669.64,1.11762987]
[1738095042761,1.55808105,670.66,669.64,1.11762987]
[1738095043058,0.27417738,670.65,669.64,1.11762987]
[1738095043762,1.55808105,670.66,669.64,1.11762987]
[1738095043961,1.11905025,670.77,669.64,1.11762987]
[1738095044263,1.55785437,670.67,669.64,1.11762987]
[1738095044463,0.29816924,670.76,669.71,1.11762987]
[1738095044663,0.27415935,670.75,669.71,1.11762987]
[1738095046866,1.85595968,670.76,669.71,1.11762987]
[1738095047871,1.85595968,670.76,669.69,1.11762987]
[1738095048667,0.2741678,670.75,669.69,1.11762987]
[1738095051070,1.85595968,670.76,669.6,1.11762987]
[1738095051271,0.27416751,670.75,669.6,1.11762987]
[1738095051474,1.85595968,670.76,669.6,1.11762987]
[1738095053673,0.27415901,670.75,669.6,1.11762987]
[1738095053974,1.85595968,670.76,669.6,1.11762987]
[1738095054776,0.27415214,670.75,669.6,1.11762987]
[1738095055178,0.27415214,670.75,669.62,1.11762987]
[1738095057877,0.27415214,670.75,669.68,1.11762987]
[1738095060379,1.85595968,670.76,669.68,1.11762987]
[1738095060983,1.85595968,670.76,669.76,1.11762987]
[1738095064584,1.85595968,670.76,669.56,1.11762987]
[1738095067586,1.85595968,670.76,669.58,1.11762987]
[1738095070588,1.85595968,670.76,669.31,1.11762987]
[1738095070589,1.85595968,670.76,669.59,1.11762987]
[1738095070988,0.27416119,670.75,669.59,1.11762987]
[1738095071589,1.85595968,670.76,669.59,1.11762987]
[1738095074092,1.85595968,670.76,669.75,1.11762987]
[1738095077096,1.85595968,670.76,669.76,1.11762987]
[1738095080595,1.85595968,670.76,669.53,1.11762987]
[1738095080596,1.85595968,670.76,669.7,1.11762987]
[1738095083404,1.85595968,670.76,669.69,1.11762987]
[1738095086209,1.85595968,670.76,669.68,1.11762987]
[1738095088607,0.27417612,670.75,669.68,1.11762987]
[1738095088913,0.29817813,670.74,669.68,1.11762987]
[1738095089214,0.27417612,670.73,669.68,1.11762987]
[1738095089414,0.57235869,670.73,669.68,1.11762987]
[1738095089712,0.29818257,670.73,669.68,1.11762987]
[1738095093110,0.29818257,670.73,669.76,1.11762987]
[1738095096214,0.29818257,670.73,669.75,1.11762987]
[1738095099017,0.27417677,670.72,669.75,1.11762987]
[1738095099216,0.29819146,670.71,669.75,1.11762987]
[1738095099716,0.27417354,670.7,669.75,1.11762987]
[1738095100011,0.27417354,670.7,669.77,1.11762987]
[1738095100417,1.55779626,670.69,669.77,1.11762987]
[1738095100611,0.27417354,670.68,669.77,1.11762987]
[1738095102920,1.55779626,670.69,669.77,1.11762987]
[1738095103119,1.55779626,670.69,669.8,1.11762987]
[1738095106719,1.55779626,670.69,669.46,1.11762987]
[1738095108824,1.55779626,670.69,669.49,1.11762987]
[1738095109526,0.29819146,670.71,669.49,1.11762987]
[1738095112128,0.29819146,670.71,669.77,1.11762987]
[1738095114830,0.29819146,670.71,669.46,0.29874824]
[1738095114831,0.29819146,670.71,669.7,1.11762987]
[1738095118537,0.29819146,670.71,669.75,1.11762987]
[1738095121836,0.29819146,670.71,669.8,1.11762987]
[1738095124937,0.29819146,670.71,669.88,1.11762987]
[1738095128543,0.29819146,670.71,669.78,1.11762987]
[1738095131647,0.29819146,670.71,669.77,1.11762987]
[1738095138548,0.29819146,670.71,669.88,1.11762987]
[1738095146851,0.29819146,670.71,669.89,1.11762987]
[1738095149855,0.29819146,670.71,669.43,2.09885812]
[1738095149856,0.29819146,670.71,669.97,1.11762987]
[1738095153765,0.29819146,670.71,669.99,1.11762987]
[1738095156365,0.29819146,670.71,670.01,1.11762987]
[1738095159471,0.29819146,670.71,670.03,1.11762987]
[1738095162774,0.29819146,670.71,670.01,1.11762987]
[1738095166178,0.29819146,670.71,669.96,1.11762987]
[1738095168674,0.29819146,670.71,669.95,1.11762987]
[1738095171677,0.29819146,670.71,669.69,1.11762987]
[1738095175477,0.29819146,670.71,669.68,1.11762987]
[1738095178082,0.29819146,670.71,669.65,1.11762987]
[1738095182180,0.29819146,670.71,669.69,1.11762987]
[1738095185779,0.29819146,670.71,669.7,1.11762987]
[1738095188379,0.27415128,670.7,669.7,1.11762987]
[1738095188784,0.27414826,670.69,669.7,1.11762987]
[1738095188985,0.27414826,670.7,669.7,1.11762987]
[1738095189286,0.27414965,670.69,669.68,1.11762987]
[1738095189481,0.27414965,670.7,669.68,1.11762987]
[1738095190389,0.29819146,670.71,669.68,1.11762987]
[1738095192093,0.29819146,670.71,669.77,1.11762987]
[1738095195493,0.29819146,670.71,669.76,1.11762987]
[1738095197787,0.29819146,670.71,669.77,1.11762987]
[1738095200696,0.29819146,670.71,669.5,1.11762987]
[1738095203697,0.29819146,670.71,669.53,1.11762987]
[1738095206398,0.29819146,670.71,669.54,1.11762987]
[1738095208294,0.27418451,670.7,669.54,1.11762987]
[1738095208596,0.29820036,670.69,669.54,1.11762987]
[1738095208795,0.27418451,670.68,669.54,1.11762987]
[1738095208994,0.29820925,670.67,669.54,1.11762987]
[1738095209198,0.27418451,670.66,669.54,1.11762987]
[1738095209493,0.27418703,670.65,669.54,1.11762987]
[1738095210401,0.57240517,670.65,669.54,1.11762987]
[1738095210599,0.27418703,670.64,669.54,1.11762987]
[1738095211199,0.27418651,670.63,669.54,1.11762987]
[1738095211503,0.27418651,670.62,669.54,1.11762987]
[1738095211695,0.27418651,670.61,669.54,1.11762987]
[1738095211993,0.29821814,670.65,669.54,1.11762987]
[1738095212198,0.27418724,670.64,669.54,1.11762987]
[1738095212598,0.29821814,670.65,669.54,1.11762987]
[1738095212995,0.29821814,670.65,669.71,1.11762987]
[1738095213199,0.27418776,670.64,669.71,1.11762987]
[1738095213400,0.29821814,670.65,669.71,1.11762987]
[1738095216001,0.29821814,670.65,669.69,1.11762987]
[1738095220306,0.29821814,670.65,669.64,1.11762987]
[1738095223510,0.29821814,670.65,669.46,1.41637811]
[1738095227308,0.29821814,670.65,669.49,1.11762987]
[1738095230010,0.29821814,670.65,669.5,1.11762987]
[1738095233319,0.29821814,670.65,669.71,1.11762987]
[1738095236321,0.29821814,670.65,669.74,1.11762987]
[1738095239013,1.55802874,670.66,669.74,1.11762987]
[1738095239214,1.55802874,670.66,669.79,1.11762987]
[1738095242223,1.55802874,670.66,669.25,1.34115585]
[1738095242224,1.55802874,670.66,669.7,1.11762987]
[1738095247320,1.11905025,670.88,669.7,1.11762987]
[1738095247527,1.55768004,670.76,669.7,1.11762987]
[1738095247729,1.11905025,670.88,669.7,1.11762987]
[1738095247927,0.27411546,670.87,669.7,1.11762987]
[1738095248123,1.55762194,670.76,669.7,1.11762987]
[1738095248328,1.11905025,670.88,669.7,1.11762987]
[1738095248630,0.27411821,670.87,669.7,1.11762987]
[1738095249426,1.11905025,670.88,669.7,1.11762987]
[1738095249622,1.55751737,670.86,669.7,1.11762987]
[1738095250631,1.55751737,670.86,669.9,1.11762987]
[1738095253432,1.55751737,670.86,669.3,2.10904508]
[1738095253433,1.55751737,670.86,669.82,1.11762987]
[1738095257030,1.55751737,670.86,669.74,1.11762987]
[1738095259836,1.55751737,670.86,669.76,1.11762987]
[1738095263638,0.27410792,670.85,669.76,1.11762987]
[1738095266737,0.27410792,670.85,669.87,1.11762987]
[1738095268841,0.27410859,670.84,669.87,1.11762987]
[1738095269140,0.27410859,670.83,669.87,1.11762987]
[1738095269341,0.27410859,670.85,669.87,1.11762987]
[1738095269541,0.27410859,670.84,669.9,1.11762987]
[1738095269742,0.27410859,670.83,669.9,1.11762987]
[1738095270041,0.27410859,670.82,669.9,1.11762987]
[1738095270242,0.27410859,670.85,669.9,1.11762987]
[1738095270442,1.55751737,670.86,669.9,1.11762987]
[1738095270744,0.27410873,670.85,669.9,1.11762987]
[1738095272142,1.55751737,670.86,669.9,1.11762987]
[1738095272843,1.55751737,670.86,669.92,1.11762987]
[1738095275344,1.55751737,670.86,669.91,1.11762987]
[1738095279042,1.55751737,670.86,669.66,0.7074379]
[1738095279043,1.55751737,670.86,669.97,1.11762987]
[1738095280245,0.27410629,670.85,669.97,1.11762987]
[1738095281546,0.27410629,670.85,670.01,1.11762987]
[1738095281745,1.55751737,670.86,670.01,1.11762987]
[1738095281945,0.27410604,670.85,670.01,1.11762987]
[1738095282445,1.55751737,670.86,670.01,1.11762987]
[1738095282646,0.2741061,670.85,670.01,1.11762987]
[1738095284148,1.11905025,670.81,670.06,1.11762987]
[1738095284343,0.27410667,670.8,670.06,1.11762987]
[1738095285050,1.55734893,670.79,670.06,1.11762987]
[1738095285249,0.27410667,670.78,670.06,1.11762987]
[1738095287351,1.55734893,670.79,670.06,1.11762987]
[1738095289653,1.55734893,670.79,670.07,1.11762987]
[1738095292155,1.55734893,670.79,670.02,1.11762987]
[1738095294754,1.55734893,670.79,670.0,1.11762987]
[1738095300855,1.55734893,670.79,670.01,1.11762987]
[1738095301655,1.11905025,670.87,670.01,1.11762987]
[1738095301952,1.55750575,670.78,670.01,1.11762987]
[1738095302158,0.29812479,670.86,670.01,1.11762987]
[1738095302458,1.55751156,670.77,670.01,1.11762987]
[1738095302657,0.29812479,670.86,670.01,1.11762987]
[1738095302858,0.27411472,670.85,670.01,1.11762987]
[1738095303060,0.29813368,670.84,670.01,1.11762987]
[1738095303358,0.27411472,670.83,670.01,1.11762987]
[1738095303560,1.11905025,670.81,670.02,1.11762987]
[1738095303756,0.27411472,670.8,670.02,1.11762987]
[1738095304458,1.41719726,670.81,670.02,1.11762987]
[1738095305859,0.29815146,670.8,670.02,1.11762987]
[1738095306062,1.41720171,670.8,670.01,1.11762987]
[1738095306959,0.27418851,670.79,670.01,1.11762987]
[1738095307161,0.29816035,670.78,670.01,1.11762987]
[1738095307360,0.27418851,670.77,670.01,1.11762987]
[1738095307864,0.57235486,670.76,670.01,1.11762987]
[1738095308063,0.29817368,670.75,670.01,1.11762987]
[1738095308460,0.27420523,670.74,670.01,1.11762987]
[1738095308662,0.27420523,670.74,669.7,1.11762987]
[1738095308663,0.29818257,670.73,669.7,1.11762987]
[1738095308860,0.27420523,670.72,669.7,1.11762987]
[1738095309059,0.29819146,670.71,669.7,1.11762987]
[1738095312469,0.29819146,670.71,669.52,1.11762987]
[1738095313863,0.27420904,670.7,669.52,1.11762987]
[1738095314061,0.29820036,670.69,669.52,1.11762987]
[1738095315668,0.29820036,670.69,668.84,3.09318179]
[1738095315669,0.29820036,670.69,669.46,1.11762987]
[1738095316770,0.27421208,670.68,669.46,1.11762987]
[1738095316968,0.29820925,670.67,669.46,1.11762987]
[1738095317168,0.27421208,670.66,669.46,1.11762987]
[1738095317365,0.29821814,670.65,669.46,1.11762987]
[1738095317565,0.27421208,670.64,669.46,1.11762987]
[1738095317769,0.29822704,670.63,669.46,1.11762987]
[1738095319267,0.29822704,670.63,669.44,1.11762987]
[1738095323465,0.29822704,670.63,669.32,1.11762987]
[1738095324568,1.55829617,670.62,669.32,1.11762987]
[1738095324771,0.29823593,670.61,669.32,1.11762987]
[1738095328475,0.29823593,670.61,669.31,1.11762987]
[1738095331373,0.29823593,670.61,669.39,1.11762987]
[1738095334073,0.29823593,670.61,669.08,0.7070234]
[1738095334074,0.29823593,670.61,669.42,1.11762987]
[1738095335678,0.27423368,670.6,669.42,1.11762987]
[1738095335876,0.29824482,670.59,669.42,1.11762987]
[1738095336078,0.27423368,670.58,669.42,1.11762987]
[1738095336275,0.57248295,670.58,669.42,1.11762987]
[1738095336472,0.27423368,670.57,669.42,1.11762987]
[1738095337077,0.27423368,670.57,669.43,1.11762987]
[1738095337275,0.29825817,670.56,669.43,1.11762987]
[1738095337479,0.27423368,670.55,669.43,1.11762987]
[1738095337678,0.29826706,670.54,669.43,1.11762987]
[1738095337978,1.85658068,670.54,669.43,1.11762987]
[1738095340580,1.85658068,670.54,669.3,1.11762987]
[1738095342880,1.84725296,670.54,669.3,1.11762987]
[1738095343479,1.84725296,670.54,669.32,1.11762987]
[1738095345778,0.27430578,670.53,669.32,1.11762987]
[1738095345979,0.29827596,670.52,669.32,1.11762987]
[1738095346178,0.27430578,670.51,669.32,1.11762987]
[1738095346686,0.29828486,670.5,669.32,1.11762987]
[1738095346986,0.27430578,670.49,669.32,1.11762987]
[1738095347786,0.27430578,670.49,669.25,1.11762987]
[1738095347982,0.2982982,670.47,669.25,1.11762987]
[1738095348285,0.27430578,670.46,669.25,1.11762987]
[1738095348680,0.29831155,670.44,669.25,1.11762987]
[1738095348885,0.27430578,670.43,669.25,1.11762987]
[1738095349186,0.29832045,670.42,669.25,1.11762987]
[1738095349380,0.27430578,670.41,669.25,1.11762987]
[1738095351288,0.29832935,670.4,669.25,1.11762987]
[1738095351482,0.29832935,670.4,668.98,1.11762987]
[1738095351483,0.27430578,670.39,669.19,1.11762987]
[1738095351686,0.29833825,670.38,669.19,1.11762987]
[1738095351890,0.27430578,670.37,669.19,1.11762987]
[1738095352089,0.29834715,670.36,669.19,1.11762987]
[1738095352389,0.27430578,670.35,669.19,1.11762987]
[1738095352585,0.29835605,670.34,669.19,1.11762987]
[1738095352781,0.27430578,670.33,669.19,1.11762987]
[1738095352984,0.29836496,670.32,669.19,1.11762987]
[1738095353185,0.27430578,670.31,669.19,1.11762987]
[1738095353387,0.29837386,670.3,669.19,1.11762987]
[1738095354387,0.29837386,670.3,668.66,3.08189415]
[1738095354388,0.29837386,670.3,669.17,1.11762987]
[1738095357388,0.29837386,670.3,669.23,1.11762987]
[1738095358891,1.55868587,670.29,669.23,1.11762987]
[1738095360388,1.55868587,670.29,669.26,1.11762987]
[1738095360987,0.29837386,670.3,669.26,1.11762987]
[1738095364686,0.29837386,670.3,669.25,1.11762987]
[1738095368096,0.29837386,670.3,669.29,1.11762987]
[1738095370500,0.29837386,670.3,669.18,1.11762987]
[1738095371698,1.85702482,670.3,669.18,1.11762987]
[1738095377298,1.85702482,670.3,669.19,1.11762987]
[1738095380704,1.85702482,670.3,669.27,1.11762987]
[1738095384911,1.85702482,670.3,669.22,1.11762987]
[1738095387512,1.85702482,670.3,669.18,1.11762987]
[1738095390413,1.85702482,670.3,669.17,1.11762987]
[1738095391114,0.27435445,670.29,669.17,1.11762987]
[1738095391311,0.29838276,670.28,669.17,1.11762987]
[1738095391510,0.27435597,670.27,669.17,1.11762987]
[1738095391706,0.29838276,670.28,669.17,1.11762987]
[1738095392212,0.27437605,670.27,669.17,1.11762987]
[1738095393513,0.29838276,670.28,669.17,1.11762987]
[1738095393714,0.29838276,670.28,669.16,1.11762987]
[1738095395914,0.27438574,670.27,669.16,1.11762987]
[1738095396307,0.29839166,670.26,669.16,1.11762987]
[1738095397016,0.29839166,670.26,668.91,1.11762987]
[1738095399614,0.29839166,670.26,668.99,1.11762987]
[1738095401809,1.55892443,670.25,668.99,1.11762987]
[1738095402013,0.29840057,670.24,669.04,1.11762987]
[1738095403418,0.27437838,670.23,669.04,1.11762987]
[1738095403618,0.29840947,670.22,669.04,1.11762987]
[1738095404419,0.29840947,670.22,669.03,1.11762987]
[1738095404620,0.27439176,670.21,669.03,1.11762987]
[1738095404819,0.29841838,670.2,669.03,1.11762987]
[1738095406523,0.29841838,670.2,669.07,1.11762987]
[1738095409123,0.27439003,670.19,669.07,1.11762987]
[1738095409322,0.29842728,670.18,669.07,1.11762987]
[1738095409916,0.27438762,670.17,669.07,1.11762987]
[1738095410220,0.29843619,670.16,669.07,1.11762987]
[1738095410623,0.27438762,670.15,669.07,1.11762987]
[1738095410823,0.2984451,670.14,669.07,1.11762987]
[1738095412021,1.55916889,670.13,669.07,1.11762987]
[1738095412222,0.298454,670.12,669.07,1.11762987]
[1738095412625,0.298454,670.12,669.1,1.11762987]
[1738095415124,0.298454,670.12,669.15,1.11762987]
[1738095418428,0.298454,670.12,669.17,1.11762987]
[1738095424936,0.298454,670.12,668.96,1.11762987]
[1738095429240,0.298454,670.12,669.0,1.11762987]
[1738095431340,0.298454,670.12,669.18,1.11762987]
[1738095434847,0.298454,670.12,669.2,1.11762987]
[1738095437850,0.298454,670.12,669.19,1.11762987]
[1738095441347,0.298454,670.12,668.65,3.84641096]
[1738095441348,0.298454,670.12,669.3,1.11762987]
[1738095444650,0.298454,670.12,666.89,3.28313714]
[1738095444651,0.298454,670.12,669.22,1.11762987]
[1738095447454,0.298454,670.12,669.24,1.11762987]
[1738095450062,0.298454,670.12,668.69,3.09032497]
[1738095450063,0.298454,670.12,669.2,1.11762987]
[1738095452465,0.298454,670.12,669.19,1.11762987]
[1738095455964,0.298454,670.12,669.24,1.11762987]
[1738095458665,0.298454,670.12,669.02,1.11762987]
[1738095458666,0.298454,670.12,669.22,1.11762987]
[1738095461372,0.298454,670.12,669.33,1.11762987]
[1738095464778,0.298454,670.12,669.36,1.11762987]
[1738095468081,0.298454,670.12,669.37,1.11762987]
[1738095470680,0.298454,670.12,668.81,2.11059303]
[1738095470681,0.298454,670.12,669.36,1.11762987]
[1738095474083,0.298454,670.12,669.42,1.11762987]
[1738095476686,0.298454,670.12,669.43,1.11762987]
[1738095484293,0.298454,670.12,669.45,1.11762987]
[1738095487191,0.298454,670.12,668.96,2.11303388]
[1738095487192,0.298454,670.12,669.43,1.11762987]
[1738095490392,0.298454,670.12,669.45,1.11762987]
[1738095492898,0.27445345,670.11,669.45,1.11762987]
[1738095493394,0.27447485,670.1,668.96,1.11762987]
[1738095493596,0.27447485,670.09,668.96,1.11762987]
[1738095493797,0.27447485,670.11,668.96,1.11762987]
[1738095493999,0.27447485,670.1,668.96,1.11762987]
[1738095494196,0.29846737,670.09,668.96,1.11762987]
[1738095494400,0.27447485,670.08,668.96,1.11762987]
[1738095494602,0.29847627,670.07,668.96,1.11762987]
[1738095494793,0.27447485,670.06,668.96,1.11762987]
[1738095494997,0.29848518,670.05,668.96,1.11762987]
[1738095495198,0.27447485,670.04,668.96,1.11762987]
[1738095495598,0.29849409,670.03,668.96,1.11762987]
[1738095495799,0.27447485,670.02,668.96,1.11762987]
[1738095495994,0.57297385,670.01,668.96,1.11762987]
[1738095496200,0.57297831,670.0,668.96,1.11762987]
[1738095496403,0.57298276,669.99,668.96,1.11762987]
[1738095496603,0.57298722,669.98,668.96,1.11762987]
[1738095496906,0.57299181,669.97,668.84,1.11762987]
[1738095497106,0.29852082,669.97,668.84,1.11762987]
[1738095498801,0.27447089,669.96,668.84,1.11762987]
[1738095499002,0.29852974,669.95,668.84,1.11762987]
[1738095499203,1.85819361,669.95,668.84,1.11762987]
[1738095499907,1.85819361,669.95,668.29,2.11222099]
[1738095499908,1.85819361,669.95,668.79,1.4166774]
[1738095502807,1.85819361,669.95,668.79,0.29904753]
[1738095503102,0.27446186,669.94,668.79,0.29904753]
[1738095505312,0.27446186,669.94,668.83,1.11762987]
[1738095507214,1.85819361,669.95,668.83,1.11762987]
[1738095508007,1.85819361,669.95,668.82,1.11762987]
[1738095511212,1.85819361,669.95,668.79,0.29904753]
[1738095512617,1.85819361,669.95,668.59,1.11762987]
[1738095513920,0.2745565,669.94,668.59,1.11762987]
[1738095514124,0.29853865,669.93,668.59,1.11762987]
[1738095514322,0.29853865,669.93,668.49,1.11762987]
[1738095516120,0.27456158,669.92,668.49,1.11762987]
[1738095516320,0.29854756,669.91,668.49,1.11762987]
[1738095516920,0.27456315,669.9,668.49,1.11762987]
[1738095517123,0.29855647,669.89,668.49,1.11762987]
[1738095517325,0.2745619,669.88,668.49,1.11762987]
[1738095517624,0.29856539,669.87,668.49,1.11762987]
[1738095517827,0.29856539,669.87,668.35,1.11762987]
[1738095517828,1.8587362,669.87,668.35,1.11762987]
[1738095518123,1.8587362,669.87,668.36,0.29923993]
[1738095519017,0.27458113,669.86,668.36,0.29923993]
[1738095519221,0.57315238,669.85,668.36,0.29923993]
[1738095519522,0.29857876,669.84,668.36,0.29923993]
[1738095521423,0.27457696,669.83,668.36,0.29923993]
[1738095521621,0.29858768,669.82,668.36,0.29923993]
[1738095523431,0.27457982,669.81,668.36,0.29923993]
[1738095523629,0.29859659,669.8,668.36,0.29923993]
[1738095524331,0.27459794,669.79,668.36,0.29923993]
[1738095524630,0.29860551,669.78,668.36,0.29923993]
[1738095527231,0.29860551,669.78,668.42,1.11762987]
[1738095528132,1.56022327,669.77,668.42,1.11762987]
[1738095528332,0.29861442,669.76,668.42,1.11762987]
[1738095529333,0.29861442,669.76,668.5,1.11762987]
[1738095532228,0.29861442,669.76,668.54,1.11762987]
[1738095535832,0.29861442,669.76,668.53,1.11762987]
[1738095538543,0.29861442,669.76,668.48,1.11762987]
[1738095542045,0.29861442,669.76,668.51,1.11762987]
[1738095544548,0.29861442,669.76,668.7,1.11762987]
[1738095547651,0.29861442,669.76,668.8,1.11762987]
[1738095550152,0.29861442,669.76,668.46,1.11762987]
[1738095550153,0.29861442,669.76,668.88,1.11762987]
[1738095553357,0.29861442,669.76,668.86,1.11762987]
[1738095556056,0.29861442,669.76,668.88,1.11762987]
[1738095559263,0.29861442,669.76,668.89,1.11762987]
[1738095562457,0.29861442,669.76,668.87,1.11762987]
[1738095566265,0.29861442,669.76,668.9,1.11762987]
[1738095569168,0.29861442,669.76,668.94,1.11762987]
[1738095575273,0.29861442,669.76,668.98,1.11762987]
[1738095579174,0.29861442,669.76,669.0,1.11762987]
[1738095582583,0.29861442,669.76,668.85,1.11762987]
[1738095591689,0.29861442,669.76,668.78,1.11762987]
[1738095594995,0.29861442,669.76,668.82,1.11762987]
[1738095597897,0.29861442,669.76,668.86,1.11762987]
[1738095600197,0.29861442,669.76,668.84,1.11762987]